Cogmind - Beta 11 @@@ ROGUE MODE // 2022.03.18 @ 12:15:11 Player: Midas Result: Destroyed by as-72465 with Assembled Rifle Performance ------------- Evolutions (0) 0 Regions Visited (2) 400 Robots Destroyed (8) 40 Value Destroyed (128) 128 Prototype IDs (0) 0 Alien Tech Used (0) 0 Bonus (0) 0 TOTAL SCORE: 568 Bonus ------- None Cogmind --------- Core Integrity 0/250 Matter 300/300 Energy 99/100 System Corruption 1% Temperature Cool (0) Movement Core (50) Location -10/Mines Parts ------- > --- POWER (1) -------- (None) > --- PROPULSION (2) --- (None) > --- UTILITY (2) ------ Core Shielding > --- WEAPON (2) ------- (None) > --- INVENTORY (5) ---- Light Treads Light Treads Aluminum Leg Aluminum Leg Datajack Peak State ------------ > --- POWER ------------ Ion Engine > --- PROPULSION ------- Flight Unit Flight Unit > --- UTILITY ---------- Small Storage Unit Core Shielding > --- WEAPON ----------- Medium Laser Light Assault Rifle > --- INVENTORY -------- Light Treads Light Treads Aluminum Leg Aluminum Leg Wheel Compact Wheel Small Laser [Rating: 7] Favorites ----------- Power Light Ion Engine Engine Light Ion Engine Propulsion Flight Unit Leg Aluminum Leg Flight Unit Flight Unit Utility Small Storage Unit Storage Small Storage Unit Protection Core Shielding Weapon Light Assault Rifle Energy Gun Medium Laser Ballistic Gun Light Assault Rifle Build | -11 -10 -10 ------- Run | Scr Mat Min Slots Evolved . | . . . Power . | . . . Propulsion . | . . . Utility . | . . . Weapon . | . . . Parts Attached 6 | . 6 . Power 1 | . 1 . Engine 1 | . 1 . Core . | . . . Reactor . | . . . Propulsion 3 | . 3 . Treads . | . . . Leg . | . . . Wheel . | . . . Hover . | . . . Flight 3 | . 3 . Utility 1 | . 1 . Device . | . . . Storage . | . . . Processor . | . . . Hackware . | . . . Protection 1 | . 1 . Artifact . | . . . Weapon 1 | . 1 . Energy Gun 1 | . 1 . Energy Cannon . | . . . Ballistic Gun . | . . . Ballistic Cannon . | . . . Launcher . | . . . Special Weapon . | . . . Impact Weapon . | . . . Slashing Weapon . | . . . Piercing Weapon . | . . . Special Melee Weapon . | . . . Unidentified Prototypes . | . . . Parts Lost 6 | . 3 3 Power 2 | . 1 1 Propulsion 3 | . 1 2 Utility . | . . . Weapon 1 | . 1 . Highest Loss Streak 3 | . 2 3 To Critical Strikes . | . . . Average Slot Usage (%) 75 | . 80 53 Engine 12 | . 11 14 Leg 9 | . 11 . Flight 15 | . 14 24 Storage 10 | . 12 . Protection 4 | . 2 14 Energy Gun 11 | . 14 . Ballistic Gun 10 | . 13 . Naked Turns . | . . . Heaviest Build 14 | 11 14 6 Greatest Support 20 | 20 20 8 Greatest Overweight (x) 2 | . 2 1 Average Overweight (x) . | . . . Largest Inventory Capacity 8 | 8 8 5 Average Capacity 7 | 8 7 5 Most Carried 8 | 6 8 5 Average Carried 6 | 6 6 5 Final Capacity 8 | 8 5 5 Final Carried 6 | 6 5 5 Class Distribution -------------------- 100% | Mutant Dominant Class ---------------- Mutant | -10/Materials Mutant | -10/Mines Resources | -11 -10 -10 ----------- Run | Scr Mat Min Matter Collected 246 | 200 46 . Remotely . | . . . Salvage Created 185 | . 185 . Parts 16 | . 16 . Haulers Intercepted . | . . . Recyclers Shooed . | . . . Parts Field Recycled . | . . . Retrieved Matter . | . . . Parts Self-Destructed . | . . . Prevented . | . . . Kills | -11 -10 -10 ------- Run | Scr Mat Min Combat Hostiles Destroyed 8 | . 8 . Guns 8 | . 8 . Classes Destroyed 2 | . 2 . Swarmer 6 | . 6 . Grunt 2 | . 2 . Best Kill Streak 5 | . 5 . Combat Bots Only 5 | . 5 . Max Kills in Single Turn 2 | . 2 . Gunslinging 1 | . 1 . Exploded . | . . . Melee . | . . . Uniques/NPCs Destroyed . | . . . Combat | -11 -10 -10 -------- Run | Scr Mat Min Damage Taken 640 | . 390 250 Core 255 | . 116 139 Absorbed by Shields . | . . . Redirected to Shielding 28 | . 2 26 Core Remaining (%) 100 | 100 . . Volleys Fired 16 | . 16 . Largest 2 | . 2 . Hottest 70 | . 70 . Shots Fired 32 | . 32 . Gun 32 | . 32 . Cannon . | . . . Launcher . | . . . Special . | . . . Kinetic 16 | . 16 . Thermal 16 | . 16 . Explosive . | . . . Electromagnetic . | . . . Robot Hit Streak 11 | . 11 . Robot Miss Streak 3 | . 3 . Penetration Max . | . . . Secondary Targets 2 | . 2 . Max Gunslinging Chain 1 | . 1 . Shots Hit Robots 22 | . 22 . Core Hits 13 | . 13 . Critical Kills . | . . . Critical Parts Destroyed . | . . . Critical Strikes 3 | . 3 . Burn 3 | . 3 . Melee Attacks . | . . . Impact . | . . . Slashing . | . . . Piercing . | . . . Sneak Attacks . | . . . Combat Hostiles . | . . . Follow-up Attacks . | . . . Damage Inflicted 261 | . 256 5 Guns 256 | . 256 . Cannons . | . . . Explosions . | . . . Melee . | . . . Ramming 5 | . . 5 Kinetic 91 | . 91 . Thermal 165 | . 165 . Explosive . | . . . Electromagnetic . | . . . Impact . | . . . Slashing . | . . . Piercing . | . . . Highest Corruption 1 | . 1 1 Average Corruption 1 | . 1 1 Corruption Purged . | . . . Corruption Blocked . | . . . Effects 1 | . 1 . Parts Rejected 1 | . 1 . Overload Shots . | . . . Overflow Damage . | . . . Projectiles . | . . . Explosions . | . . . Melee . | . . . Knockbacks . | . . . Impact . | . . . Kinetic . | . . . Secondary . | . . . Self-Inflicted Damage 2 | . . 2 Shots . | . . . Rammed 1 | . . 1 Targets Rammed 1 | . . 1 Kicked . | . . . Crushed . | . . . Highest Temperature 198 | . 198 . Average Temperature 90 | . 90 . Received Heat Transfer 54 | . 54 . Siege Activations . | . . . Robots Corrupted . | . . . Combat Hostiles . | . . . Parts Fried . | . . . Impact Corruptions . | . . . Robots Melted . | . . . Combat Hostiles . | . . . Parts Melted 1 | . 1 . Heat Transferred 703 | . 703 . Parts Sabotaged . | . . . Parts Stolen . | . . . Parts Stripped . | . . . Power Chain Reactions . | . . . Missiles Intercepted . | . . . Alert | -11 -10 -10 ------- Run | Scr Mat Min Peak Influence 245 | . 245 111 Initial 91 | . . 91 Average 114 | . 122 97 Maximum Alert Level 1 | . 1 . Low Security (%) 73 | 100 66 100 Level 1 26 | . 33 . Level 2 . | . . . Level 3 . | . . . Level 4 . | . . . Level 5 . | . . . High Security . | . . . Max Security . | . . . Squads Dispatched 1 | . 1 . Investigation . | . . . Extermination . | . . . Reinforcement 1 | . 1 . Assault . | . . . Garrison . | . . . Intercept . | . . . Searches Triggered . | . . . Construction Impeded . | . . . Haulers Reinforced . | . . . Active Scanning Responses . | . . . Cargo Convoy Interrupts . | . . . Stealth | -11 -10 -10 --------- Run | Scr Mat Min Distress Signals 2 | . 2 . Communications Jammed . | . . . Distress Signals . | . . . Times Spotted 33 | . 16 17 Peak Tracking Total 19 | . 6 19 Tactical Retreats 2 | . 1 1 Traps | -11 -10 -10 ------- Run | Scr Mat Min Traps Triggered 1 | . 1 . Indirectly . | . . . Trap Hack Attempts . | . . . Triggered . | . . . Disarmed . | . . . Reprogrammed . | . . . Reused . | . . . Traps Extracted . | . . . Installed . | . . . Triggered . | . . . Machines | -11 -10 -10 ---------- Run | Scr Mat Min Machines Disabled . | . . . Max in Single Turn . | . . . Machines Sabotaged . | . . . Garrisons Compromised . | . . . Overloaded Fab Kills . | . . . Hacking | -11 -10 -10 --------- Run | Scr Mat Min Machines Accessed . | . . . Terminals . | . . . Fabricators . | . . . Repair Stations . | . . . Recycling Units . | . . . Scanalyzers . | . . . Garrison Access . | . . . Total Hacks . | . . . Successful . | . . . Failed . | . . . Catastrophic . | . . . Database Lockouts . | . . . Manual . | . . . Terminals . | . . . Fabricators . | . . . Repair Stations . | . . . Recycling Units . | . . . Scanalyzers . | . . . Garrison Access . | . . . Terminal Hacks . | . . . Fabricator Hacks . | . . . Repair Station Hacks . | . . . Recycling Unit Hacks . | . . . Scanalyzer . | . . . Garrison Access Hacks . | . . . Unauthorized Hacks . | . . . Terminals . | . . . Fabricators . | . . . Repair Stations . | . . . Recycling Units . | . . . Scanalyzers . | . . . Garrison Access . | . . . Data Cores Recovered . | . . . Used . | . . . Hacking Detections . | . . . Full Trace Events . | . . . Feedback Events . | . . . Feedback Blocked . | . . . Robot Schematics Acquired . | . . . Robots Built . | . . . Authchips . | . . . Time . | . . . Total Robot Build Rating . | . . . Part Schematics Acquired . | . . . Parts Built . | . . . Authchips . | . . . Time . | . . . Total Part Build Rating . | . . . Parts Repaired . | . . . Time . | . . . Parts Recycled . | . . . Recycled Matter . | . . . Retrieved Matter . | . . . Retrieved Components . | . . . Parts Scanalyzed . | . . . Part Schematics Acquired . | . . . Parts Damaged . | . . . Bothacking | -11 -10 -10 ------------ Run | Scr Mat Min Used RIF Installer . | . . . Robots Hacked . | . . . Non-combat . | . . . Combat . | . . . Robot Hacks Applied . | . . . Relay Couplers Released . | . . . Fabnet Peak Effective % . | . . . Robots Rewired . | . . . Allies Hacked . | . . . Hacks Repelled . | . . . Allies | -11 -10 -10 -------- Run | Scr Mat Min Total Allies . | . . . Largest Group . | . . . Highest-Rated Group . | . . . Highest-Rated Ally . | . . . Total Orders . | . . . Ally Attacks . | . . . Total Damage . | . . . Kills . | . . . Allies Corrupted . | . . . Allies Melted . | . . . Intel | -11 -10 -10 ------- Run | Scr Mat Min Robot Analysis Total . | . . . Derelict Logs Recovered . | . . . Drone Launches . | . . . Drone Recoveries . | . . . Exploration | -11 -10 -10 ------------- Run | Scr Mat Min Turns Passed 231 | 6 184 41 Spaces Moved 241 | 6 139 96 Core 2 | . . 2 Treads . | . . . Legs 49 | 6 43 . Wheels . | . . . Hover . | . . . Flight 190 | . 96 94 Fastest Speed 37 | 120 37 37 Average Speed 72 | 120 91 42 Slowest Speed 210 | 120 210 120 Overloaded Moves . | . . . Propulsion Burnouts . | . . . Robots Hopped 2 | . 2 . Cave-ins Triggered . | . . . Exploration Rate (%) 15 | 2 25 18 Regions Visited 2 Branch Regions 1 Pre-discovered Areas . | . . . Known Exits Taken . | . . . Unknown Exits Taken 2 | 1 1 . Scrap Searched . | . . . Spaces Dug . | . . . Terrain Destroyed . | . . . Melee . | . . . Projectile . | . . . AOE . | . . . Terrain Rammed . | . . . Walls Destroyed . | . . . Machines Disabled . | . . . Actions | -11 -10 -10 --------- Run | Scr Mat Min Total 267 | 5 165 97 Wait . | . . . Move 235 | 5 134 96 Hop 2 | . 2 . Pick Up 1 | . 1 . Fast Attach 4 | . 4 . Attach 2 | . 2 . Detach 2 | . 2 . Swap . | . . . Drop 4 | . 4 . Fire 16 | . 16 . Melee . | . . . Ram 1 | . . 1 Kick . | . . . Crush . | . . . Escape Stasis . | . . . Rewire . | . . . Trap . | . . . Miscellaneous . | . . . Route ------- -11/Scrapyard -10/Materials -10/Mines History --------- Turn | Location | Event 1 | -11/Scrapyard | Discovered new exit (range 1) 7 | -11/Scrapyard | Entered Materials 184 | -10/Materials | Discovered new exit (range 13) 191 | -10/Materials | Entered Mines 200 | -10/Mines | Assembled infested the area 216 | -10/Mines | Core integrity fell below 50% 232 | -10/Mines | Core integrity fell below 20% 232 | -10/Mines | Destroyed by as-72465 with Assembled Rifle Last Messages --------------- 00161_ Acquired 5 matter. 00162_ Acquired 15 matter. 00170_ Dropped Wheel. 00171_ Dropped Com. Wheel. 00171_ Dropped Sml. Storage Unit. 00172_ Dropped Med. Laser. 00179_ Acquired Datajack. 00181_ W-16 Scout sends out distress signal. 00183_ K-01 Serf collects debris. 00184_ EXIT=FOUND 00185_ K-01 Serf collects debris. 00188_ Lgt. Assault Rifle destroyed. 00191_ System corrupted: Sml. Laser rejected. LOCATION=UNKNOWN GOAL=ESCAPE Something is scanning the area. 00200_ ALERT: Infestation in the mines, dispatching Demolisher response squad. 00224_ Flight Unit destroyed. 00231_ Ion Engine destroyed. 00231_ Slammed into as-40158. Map ----- +----------------------------------------------------+ | | | | | ???????????????????????????????????????????? | | ???????????????????????????????????????????? | | ???????????????????????????????????????????? | | ???????????????????????????????????????????? | | ???????????????????????????????????????????? | | ???????????????????????????????????????????? | | ??????????????????#####????????????????????? | | ??????????????##### ##???????????????????? | | ?????????????## #####???????????????? | | ?????????????# #???????????????? | | ?????????????# #### #???????????????? | | ?????????????## #??# #???????????????? | | ?????????????## ##??# #### #???? | | ?????????????# #####???# #??? | | ????????????## ##???????# % #?? | | ?????????#### #???###??# ###### ?? | | ????????## a#???# ?? #????????? ??? | | ????????# ##??# #??###???????????????? | | ????????# aa#??# #????????????????????? | | ????????# aa#### ##???????????????????? | | ????????## a ##aa ##??????????????????? | | ?????????## #??????????????????? | | ??????????####### a%a #??????????????????? | | ????????????????## @ #??????????????????? | | ?????????????????## a ##??????????????????? | | ??????????????????### ##???????????????????? | | ??????????????????###=#????????????????????? | | ??????????????????# %#????????????????????? | | ??????????????????# ##????##??????????????? | | ??????????????????# #????? ##?????????????? | | ??????????????????# #????? ##????????????? | | ??????????????????# #????? #????????????? | | ??????????????????# #???## #????????????? | | ??????????????????# #??## #????????????? | | ??????????????????# #### #????????????? | | ??????????????????# ## #????????????? | | ??????????????????# #????????????? | | ??????????????????# ##????????????? | | ??????????????????# ####?????????????? | | ?????????????????# ##????????????????? | | ???????????????? #?????????????????? | | ?????????????? #?????????????????? | | ???????????? ##?????????????????? | | ???????????### ### ##??????????????????? | | ?????????????## ##??# #???????????????????? | | ??????????????# #????# #???????????????????? | | ??????????????# ?????# #???????????????????? | | ??????????????#?????? $ ???????????????????? | +----------------------------------------------------+ Best States ------------- Heat Dissipation 25 Energy Generation 10 Energy Capacity 250 Matter Stores 300 Matter Capacity 300 Sight Range 16 Terrain Scan Density 10 Core Shielding 20 Evasion (%) 62 Item Schematics ----------------- None Robot Schematics ------------------ None Fabricated ------------ Nothing Alien Tech Used ----------------- None Achievements -------------- None Challenges ------------ None Game ------ Seed LightpackReactionKit Manual? 0 Play Time 00:04:25 Cumulative 25.0 hours Start 2022.03.18 @ 12:11:36 End 2022.03.18 @ 12:15:11 Sessions 1 Manual Loads 0 Difficulty Rogue Special Mode None Game No. 41 Rogue 26 Adventurer 15 Explorer 0 Win Type - Total 0 Types 0/0/0/0/0/0/0/0/0 Lore% 17 Gallery% 26 Achievement% 19 Wizard Run 0 Options --------- ASCII 0 Keyboard 0 Movement Arrows Keybinds 0 Fullscreen 0 Font 20/SmallcapsGlow Map View 113x50 Tactical HUD 1 Map Filters NONE Filters NONE Steam 1 RUN: 1d25e6dd-5668-4f3f-a89e-2fa6096acc3c